bitfinex/quotes_BTCUSD_20251009
["timestamp","ask_amount","ask_price","bid_price","bid_amount"]
[1759970693677,0.48316769,123050.0,123040.0,0.49606538]
[1759970694114,0.23227052,123050.0,123040.0,0.49606538]
[1759970694525,0.06973497,123050.0,123040.0,0.49606538]
[1759970694961,0.06973497,123050.0,123040.0,0.26634538]
[1759970695159,0.06973497,123050.0,123040.0,0.49602538]
[1759970695596,0.06973497,123050.0,123040.0,0.51724255]
[1759970695840,0.01904497,123050.0,123040.0,0.76905972]
[1759970696041,0.03408497,123050.0,123040.0,0.68453972]
[1759970696250,0.03408497,123050.0,123040.0,0.74788255]
[1759970700104,0.20835052,123050.0,123040.0,0.17369824]
[1759970700316,0.48316769,123050.0,123040.0,0.48793824]
[1759970700568,0.91384869,123050.0,123040.0,0.01114948]
[1759970700811,1.19489776,123050.0,123040.0,0.01114948]
[1759970701242,1.19489776,123050.0,123010.0,0.17071667]
[1759970701243,0.16257519,123020.0,123010.0,0.17071667]
[1759970701450,0.1969091,123020.0,123010.0,0.25523667]
[1759970701654,0.07329391,123020.0,123010.0,0.48503667]
[1759970701864,0.06573497,123020.0,123010.0,0.73593384]
[1759970702075,0.06573497,123020.0,123010.0,0.50613384]
[1759970702281,0.06573497,123020.0,123010.0,0.73593384]
[1759970702490,0.01504497,123020.0,123010.0,0.82723577]
[1759970702703,0.01504497,123020.0,123010.0,0.92952485]
[1759970702906,0.01804497,123020.0,123010.0,1.17132485]
[1759970703130,0.01804497,123020.0,123010.0,0.92042768]
[1759970703552,0.01804497,123020.0,123010.0,0.94853498]
[1759970703761,0.01804497,123020.0,123010.0,1.28853498]
[1759970703971,0.004,123020.0,123010.0,1.29053498]
[1759970704178,0.004,123020.0,123010.0,1.52041498]
[1759970706349,0.004,123020.0,123010.0,1.43589498]
[1759970706552,0.004,123020.0,123010.0,1.51583498]
[1759970706763,0.004,123020.0,123010.0,1.59583178]
[1759970708030,0.004,123020.0,123010.0,1.34441132]
[1759970708260,0.004,123020.0,123010.0,1.42897132]
[1759970711208,0.004,123020.0,123010.0,1.34893452]
[1759970714475,0.004,123020.0,123010.0,1.11909452]
[1759970714730,0.004,123020.0,123010.0,1.34893452]
[1759970715772,0.00756311,123040.0,123030.0,0.16256197]
[1759970716109,0.00014928,123040.0,123030.0,0.8267141]
[1759970716323,0.00014928,123040.0,123030.0,0.83817791]
[1759970716626,0.00014928,123040.0,123030.0,0.60833791]
[1759970716839,0.00014928,123040.0,123030.0,0.92273791]
[1759970717082,0.00014928,123040.0,123030.0,0.60833791]
[1759970717309,0.00014928,123040.0,123030.0,0.58780403]
[1759970717500,0.00314928,123040.0,123030.0,0.58980403]
[1759970717672,0.00314928,123040.0,123030.0,0.92473791]
[1759970717887,0.00414928,123040.0,123030.0,0.59280403]
[1759970718072,0.00414928,123040.0,123030.0,0.61333791]
[1759970718467,0.00414928,123040.0,123030.0,0.92773791]
[1759970722850,0.00414928,123040.0,123030.0,0.59280403]
[1759970723002,0.00414928,123040.0,123030.0,0.92773791]
[1759970727465,0.00414928,123040.0,123030.0,1.03789791]
[1759970727672,0.00414928,123040.0,123030.0,1.26765791]
[1759970729370,0.00414928,123040.0,123030.0,1.37613791]
[1759970729550,0.00414928,123040.0,123030.0,1.60589791]
[1759970731193,0.00414928,123040.0,123030.0,1.37613791]
[1759970731398,0.00414928,123040.0,123030.0,1.60585791]
[1759970731879,0.00414928,123040.0,123030.0,1.37613791]
[1759970732076,0.00414928,123040.0,123030.0,1.60585791]
[1759970732287,0.00414928,123040.0,123030.0,1.65654805]
[1759970733927,0.00414928,123040.0,123030.0,1.42682805]
[1759970734044,0.00414928,123040.0,123030.0,1.65654805]
[1759970737867,0.00414928,123040.0,123030.0,1.99148193]
[1759970739214,0.00414928,123040.0,123030.0,1.65654805]
[1759970743792,0.00414928,123040.0,123030.0,1.18297791]
[1759970744082,0.00414928,123040.0,123030.0,0.95333791]
[1759970744345,0.00414928,123040.0,123030.0,1.60569791]
[1759970744883,0.00414928,123040.0,123030.0,1.37605791]
[1759970745135,0.00414928,123040.0,123030.0,1.60569791]
[1759970746549,0.00414928,123040.0,123030.0,1.68569471]
[1759970747641,0.00414928,123040.0,123030.0,1.03333471]
[1759970747861,0.00414928,123040.0,123030.0,1.68569471]
[1759970748514,0.00414928,123040.0,123030.0,1.7101]
[1759970749607,0.00414928,123040.0,123030.0,1.6301032]
[1759970750001,0.00164928,123040.0,123030.0,1.6301032]
[1759970752537,0.03487407,123080.0,123060.0,0.16252234]
[1759970752790,0.00065346,123080.0,123070.0,0.62613393]
[1759970752994,0.02790346,123080.0,123070.0,0.83952302]
[1759970753318,0.05054346,123080.0,123070.0,0.17422914]
[1759970753654,0.05854346,123080.0,123070.0,0.18226221]
[1759970753854,0.05854346,123080.0,123070.0,0.49642221]
[1759970754061,0.05054346,123080.0,123070.0,0.49642221]
[1759970754261,0.05054346,123080.0,123070.0,0.49942221]
[1759970754262,0.06054346,123080.0,123070.0,0.49942221]
[1759970754508,0.06154346,123080.0,123070.0,0.49942221]
[1759970755014,0.06054346,123080.0,123070.0,0.49942221]
[1759970755351,0.06254346,123080.0,123070.0,0.50042221]
[1759970759405,0.03990346,123080.0,123070.0,0.51662221]
[1759970759407,0.03990346,123080.0,123070.0,0.85155609]
[1759970759525,0.09990346,123080.0,123070.0,0.85155609]
[1759970760583,0.07265346,123080.0,123070.0,0.85155609]
[1759970760796,0.07265346,123080.0,123070.0,0.86327609]
[1759970763124,0.07265346,123080.0,123070.0,0.85155609]
[1759970763356,0.07265346,123080.0,123070.0,0.86327609]
[1759970763573,0.06265346,123080.0,123070.0,0.86027609]
[1759970763773,0.06065346,123080.0,123070.0,0.86227609]
[1759970763997,0.06865346,123080.0,123070.0,0.86227609]
[1759970764590,0.06965346,123080.0,123070.0,0.86427609]
[1759970766904,0.06965346,123080.0,123070.0,0.85251609]
[1759970770087,0.06965346,123080.0,123070.0,0.7803285]
[1759970775087,0.06965346,123080.0,123070.0,0.96487365]
[1759970775315,0.06965346,123080.0,123070.0,1.19447365]
[1759970775549,0.00965346,123080.0,123070.0,1.21887292]
[1759970776215,0.00965346,123080.0,123070.0,0.90475292]
[1759970776424,0.00965346,123080.0,123070.0,1.13887612]
[1759970777472,0.00965346,123080.0,123070.0,0.57372983]
[1759970777682,0.00965346,123080.0,123070.0,0.87612983]
[1759970778518,0.00965346,123080.0,123070.0,0.56200983]
[1759970778762,0.00965346,123080.0,123070.0,0.87612983]
[1759970781220,0.00965346,123080.0,123070.0,0.88784983]
[1759970781434,0.00965346,123080.0,123070.0,0.96784663]
[1759970783966,0.00965346,123080.0,123070.0,0.65372663]
[1759970784172,0.00965346,123080.0,123070.0,0.88780983]
[1759970785973,0.00965346,123080.0,123070.0,1.13883612]
[1759970788749,0.00965346,123080.0,123070.0,1.47883612]
[1759970790329,0.00965346,123080.0,123070.0,1.16475612]
[1759970790557,0.00965346,123080.0,123070.0,1.47883612]
[1759970792351,0.00965346,123080.0,123070.0,1.54259727]
[1759970800716,0.00965346,123080.0,123070.0,1.56406356]
[1759970801021,0.00965346,123080.0,123070.0,1.88067727]
[1759970801897,0.00965346,123080.0,123070.0,2.13170356]
[1759970802101,0.00865346,123080.0,123070.0,2.12970356]
[1759970802310,0.00065346,123080.0,123070.0,2.12670356]
[1759970802531,0.00465346,123080.0,123070.0,2.13370356]
[1759970808304,0.00465346,123080.0,123070.0,1.23051727]
[1759970808503,0.00465346,123080.0,123070.0,1.88263727]
[1759970809314,0.00465346,123080.0,123070.0,1.23051727]
[1759970809524,0.00465346,123080.0,123070.0,1.88263727]
[1759970810617,0.00465346,123080.0,123070.0,1.23051727]
[1759970810826,0.00465346,123080.0,123070.0,0.95798469]
[1759970811038,0.00465346,123080.0,123070.0,1.88263727]
[1759970813722,0.00465346,123080.0,123070.0,2.13366356]
[1759970814193,0.00465346,123080.0,123070.0,1.88263727]
[1759970814407,0.00465346,123080.0,123070.0,2.13366356]
[1759970817554,0.00465346,123080.0,123070.0,1.88263727]
[1759970820677,0.01162,123120.0,123110.0,0.16245633]
[1759970820884,0.00049788,123120.0,123110.0,0.68162262]
[1759970821608,0.00049788,123120.0,123110.0,0.69334262]
[1759970821813,0.00049788,123120.0,123110.0,0.78756891]
[1759970822248,0.01449788,123120.0,123110.0,1.02108891]
[1759970822510,0.01449788,123120.0,123110.0,0.85005942]
[1759970822723,0.01449788,123120.0,123110.0,0.83833942]
[1759970823320,0.01449788,123120.0,123110.0,0.89779323]
[1759970824576,0.01449788,123120.0,123110.0,0.81779643]
[1759970825731,0.01449788,123120.0,123110.0,0.82951643]
[1759970826309,0.01651343,123120.0,123110.0,0.82951643]
[1759970827879,0.01651343,123120.0,123110.0,1.08054272]
[1759970829297,0.01651343,123120.0,123110.0,0.76650272]
[1759970829510,0.01651343,123120.0,123110.0,1.01410158]
[1759970829667,0.01651343,123120.0,123110.0,1.24358158]
[1759970829896,0.01651343,123120.0,123110.0,1.26797324]
[1759970831972,0.01651343,123120.0,123110.0,1.10030597]
[1759970832334,0.01551343,123120.0,123110.0,1.09930597]
[1759970832543,0.01651343,123120.0,123110.0,1.10230597]
[1759970832960,0.01551343,123120.0,123110.0,1.09630597]
[1759970833161,0.00251343,123120.0,123110.0,1.09630597]
[1759970833568,0.01051343,123120.0,123110.0,1.09830597]
[1759970834412,0.01151343,123120.0,123110.0,1.10030597]
[1759970841744,0.01151343,123120.0,123110.0,0.93578917]
[1759970841978,0.01151343,123120.0,123110.0,1.02026917]
[1759970842606,0.01151343,123120.0,123110.0,1.12521448]
[1759970842811,0.01151343,123120.0,123110.0,1.69265448]
[1759970843045,0.01151343,123120.0,123110.0,1.27017448]
[1759970843225,0.01151343,123120.0,123110.0,1.43826597]
[1759970846869,0.01151343,123120.0,123110.0,0.78634597]
[1759970847098,0.01151343,123120.0,123110.0,1.43826597]
[1759970847660,0.01151343,123120.0,123110.0,1.20882597]
[1759970847976,0.01151343,123120.0,123110.0,1.35378597]
[1759970848194,0.01151343,123120.0,123110.0,1.43826597]
[1759970851777,0.01151343,123120.0,123110.0,0.78634597]
[1759970852058,0.01151343,123120.0,123110.0,1.43826597]
[1759970852985,0.01151343,123120.0,123110.0,0.78634597]
[1759970853294,0.01151343,123120.0,123110.0,1.43826597]
[1759970859432,0.01151343,123120.0,123110.0,1.88321128]
[1759970859643,1e-08,123120.0,123110.0,1.88321128]
[1759970859859,1e-08,123120.0,123110.0,2.11261128]
[1759970860536,0.0004,123130.0,123120.0,0.50244314]
[1759970860758,0.0005493,123130.0,123120.0,1.56373262]
[1759970860945,0.0005493,123130.0,123120.0,1.59125262]
[1759970861367,0.0005493,123130.0,123120.0,1.60342262]
[1759970863758,0.0005493,123130.0,123120.0,2.02986262]
[1759970863759,0.00400001,123130.0,123120.0,2.02986262]
[1759970866146,0.00450377,123130.0,123120.0,2.02986262]
[1759970870882,0.00450377,123130.0,123120.0,1.60742262]
[1759970871076,0.00450377,123130.0,123120.0,2.02986262]
[1759970871461,0.00450377,123130.0,123120.0,1.37802262]
[1759970871631,0.00450377,123130.0,123120.0,2.02982262]
[1759970872712,0.00450377,123130.0,123120.0,1.94534262]
[1759970872910,0.00450377,123130.0,123120.0,2.02982262]
[1759970877726,0.00450377,123130.0,123120.0,1.37802262]
[1759970877967,0.00450377,123130.0,123120.0,2.02978262]
[1759970879893,0.00450377,123130.0,123120.0,1.60738262]
[1759970880094,0.00450377,123130.0,123120.0,1.38604051]
[1759970880421,0.00450377,123130.0,123120.0,1.61540051]
[1759970881037,0.00450377,123130.0,123120.0,0.96364051]
[1759970881230,0.00450377,123130.0,123120.0,1.61540051]
[1759970881584,0.00450377,123130.0,123120.0,0.96364051]
[1759970881779,0.00450377,123130.0,123120.0,1.65693258]
[1759970881996,0.01991377,123130.0,123120.0,0.17861314]
[1759970882201,0.03208377,123130.0,123120.0,0.27954314]
[1759970882431,0.00450377,123130.0,123120.0,0.93813051]
[1759970882628,0.00450377,123130.0,123120.0,0.62429051]
[1759970882829,0.00450377,123130.0,123120.0,0.93817051]
[1759970883034,0.00450377,123130.0,123120.0,1.01816731]
[1759970888523,0.00450377,123130.0,123120.0,0.93376731]
[1759970888758,0.00450377,123130.0,123120.0,1.01824731]
[1759970890480,0.00450377,123130.0,123120.0,0.93825051]
[1759970890973,0.00450377,123130.0,123120.0,0.70877051]
[1759970891202,0.01990377,123130.0,123120.0,0.61257051]
[1759970891431,0.01990377,123130.0,123120.0,0.5921052]
[1759970892101,0.01990377,123130.0,123120.0,0.84293119]
[1759970892539,0.00450377,123130.0,123120.0,0.84293119]
[1759970892767,0.00450377,123130.0,123120.0,0.85465119]
[1759970893177,0.00450377,123130.0,123120.0,1.10547718]
[1759970893637,0.00450377,123130.0,123120.0,0.5076252]
[1759970893841,0.03118377,123130.0,123120.0,0.2781852]
[1759970894044,0.05615377,123130.0,123120.0,0.84293119]
[1759970894230,0.03118377,123130.0,123120.0,0.84293119]
[1759970894747,0.03118377,123130.0,123120.0,0.52901119]
[1759970894968,0.03118377,123130.0,123120.0,0.84293119]
[1759970895406,0.03118377,123130.0,123120.0,0.5921052]
[1759970896045,0.03118377,123130.0,123120.0,0.3462152]
[1759970896046,0.30697976,123130.0,123120.0,0.3462152]
[1759970896319,0.05615377,123130.0,123120.0,0.5634852]
[1759970896993,0.05615377,123130.0,123120.0,0.31792]
[1759970897210,0.46940971,123130.0,123120.0,0.25092314]
[1759970897442,0.46940971,123130.0,123120.0,0.48036314]
[1759970898096,0.46640971,123130.0,123120.0,0.47936314]
[1759970898330,0.46540971,123130.0,123120.0,0.47636314]
[1759970898522,0.30397976,123130.0,123120.0,0.47736314]
[1759970898720,0.30297976,123130.0,123120.0,0.47636314]
[1759970898947,0.05215377,123130.0,123120.0,0.24692314]
[1759970899163,0.00650377,123130.0,123120.0,0.81825747]
[1759970899376,0.00650377,123130.0,123120.0,0.51533913]
[1759970899611,0.00650377,123130.0,123120.0,0.74481913]
[1759970899828,0.00650377,123130.0,123120.0,0.51533913]
[1759970900048,0.00650377,123130.0,123120.0,0.74485913]
[1759970900469,0.06650377,123130.0,123120.0,0.74485913]
[1759970900704,0.06650377,123130.0,123120.0,0.74585913]
[1759970900705,0.06750377,123130.0,123120.0,0.74585913]
[1759970903149,0.06750377,123130.0,123120.0,0.51633913]
[1759970903386,0.00750377,123130.0,123120.0,0.74585913]
[1759970905034,0.00750377,123130.0,123120.0,0.82585593]
[1759970907403,0.00750377,123130.0,123120.0,0.74585913]
[1759970907622,0.00750377,123130.0,123120.0,0.85028718]
[1759970907857,0.00750377,123130.0,123120.0,1.09148718]
[1759970908065,0.00750377,123130.0,123120.0,1.11587662]
[1759970908272,0.00750377,123130.0,123120.0,0.86505063]
[1759970908485,0.00750377,123130.0,123120.0,0.94504743]
[1759970908706,0.00750377,123130.0,123120.0,1.19587342]
[1759970909372,0.00750377,123130.0,123120.0,1.11587662]
[1759970910213,0.00750377,123130.0,123120.0,0.88639662]
[1759970910415,0.00750377,123130.0,123120.0,1.11587662]
[1759970911287,0.00750377,123130.0,123120.0,1.45587662]
[1759970914257,0.00650377,123130.0,123120.0,1.45487662]
[1759970914406,1e-08,123130.0,123120.0,1.55621941]
[1759970914622,1e-08,123130.0,123120.0,1.78569941]
[1759970915059,0.0004,123140.0,123130.0,0.50242995]
[1759970915274,0.0004,123140.0,123130.0,1.09892399]
[1759970915506,0.0004,123140.0,123130.0,1.42442083]
[1759970915927,0.0004,123140.0,123130.0,1.44880547]
[1759970916480,0.0014,123140.0,123130.0,1.45080547]
[1759970917570,0.0024,123140.0,123130.0,0.95315349]
[1759970917777,0.0024,123140.0,123130.0,1.45480547]
[1759970919999,0.001792,123140.0,123130.0,1.45480547]
[1759970920586,0.00229571,123140.0,123130.0,1.45480547]
[1759970921008,0.00229571,123140.0,123130.0,1.87712547]
[1759970927194,0.00229571,123140.0,123130.0,1.87708547]
[1759970927980,0.0004,123160.0,123150.0,0.16240357]
[1759970928217,0.0004,123160.0,123150.0,1.03115881]
[1759970928430,0.0004,123160.0,123150.0,1.04269846]
[1759970928634,0.0004,123160.0,123150.0,1.06707997]
[1759970929375,0.0014,123160.0,123150.0,1.06907997]
[1759970929746,0.0014,123160.0,123150.0,0.9064648]
[1759970929952,0.0014,123160.0,123150.0,1.1359048]
[1759970932789,0.0014,123160.0,123150.0,0.9064648]
[1759970933077,0.0014,123160.0,123150.0,1.5581848]
[1759970933684,0.0024072,123160.0,123150.0,1.5581848]
[1759970933900,0.0024072,123160.0,123150.0,1.56636276]
[1759970934103,0.0024072,123160.0,123150.0,0.66381677]
[1759970934333,0.0024072,123160.0,123150.0,1.28305592]
[1759970934606,0.0024072,123160.0,123150.0,1.28301592]
[1759970935408,0.0024072,123160.0,123150.0,0.63133592]
[1759970935608,0.0024072,123160.0,123150.0,1.28301592]
[1759970939731,0.0024072,123160.0,123150.0,1.30448191]
[1759970939917,0.0024072,123160.0,123150.0,0.96215871]
[1759970940119,0.0024072,123160.0,123150.0,1.61379871]
[1759970940532,0.0024072,123160.0,123150.0,0.96215871]
[1759970940772,0.0024072,123160.0,123150.0,1.61379871]
[1759970940984,0.0024072,123160.0,123150.0,1.53380191]
[1759970941234,0.0024072,123160.0,123150.0,1.28297592]
[1759970942117,0.0024072,123160.0,123150.0,0.63133592]
[1759970942335,0.0024072,123160.0,123150.0,1.28297592]
[1759970944437,0.0024072,123160.0,123150.0,0.63133592]
[1759970944676,0.0024072,123160.0,123150.0,1.28297592]
[1759970948589,0.0024072,123160.0,123150.0,1.53380191]
[1759970949707,0.0024072,123160.0,123150.0,0.88216191]
[1759970949930,0.0024072,123160.0,123150.0,1.53380191]
[1759970953893,0.0024072,123160.0,123150.0,1.36635709]
[1759970954859,0.0024072,123160.0,123150.0,1.44635389]
[1759970955295,0.0024072,123160.0,123150.0,1.78635389]
[1759970960286,0.0004,123170.0,123160.0,1.1708047]
[1759970960497,0.00054925,123170.0,123160.0,1.49496676]
[1759970960738,0.00054925,123170.0,123160.0,1.51040676]
[1759970960949,0.00054925,123170.0,123160.0,1.57249715]
[1759970961163,0.00054925,123170.0,123160.0,1.59687505]
[1759970961580,0.00054925,123170.0,123160.0,1.60287505]
[1759970962030,0.00054925,123170.0,123160.0,1.69094789]
[1759970962248,0.00054925,123170.0,123160.0,1.46162789]
[1759970962389,0.00054925,123170.0,123160.0,1.69094789]
[1759970963512,0.00154925,123170.0,123160.0,1.69394789]
[1759970963722,0.00154925,123170.0,123160.0,1.46462789]
[1759970963927,0.00154925,123170.0,123160.0,1.69394789]
[1759970966190,0.00205277,123170.0,123160.0,1.69394789]
[1759970970445,0.00205277,123170.0,123160.0,1.5473775]
[1759970970672,0.00205277,123170.0,123160.0,1.3180975]
[1759970970856,0.00205277,123170.0,123160.0,1.6318175]
[1759970972394,0.00205277,123170.0,123160.0,1.5473775]
[1759970972583,0.00205277,123170.0,123160.0,1.2095375]
[1759970972854,0.00205277,123170.0,123160.0,1.6318175]
[1759970974256,0.00205277,123170.0,123160.0,0.64605034]
[1759970974470,0.00205277,123170.0,123160.0,1.6318175]
[1759970975719,0.00205277,123170.0,123160.0,1.29761034]
[1759970975918,0.00205277,123170.0,123160.0,1.6318175]
[1759970980490,0.00205277,123170.0,123160.0,1.69525918]
[1759970983191,0.00205277,123170.0,123160.0,1.29761034]
[1759970983401,0.00205277,123170.0,123160.0,0.9802575]
[1759970983605,0.00205277,123170.0,123160.0,1.6318175]
[1759970985138,0.00205277,123170.0,123160.0,1.06833034]
[1759970985340,0.01730277,123170.0,123160.0,0.63433034]
[1759970985674,0.01730277,123170.0,123160.0,0.94805034]
[1759970989330,0.00205277,123170.0,123160.0,0.94805034]
[1759970991293,0.00205277,123170.0,123160.0,0.71877034]
[1759970991534,0.00205277,123170.0,123160.0,0.95977034]
[1759970991746,0.00205277,123170.0,123160.0,1.2939775]
[1759970993685,0.00205277,123170.0,123160.0,1.2909775]
[1759970993686,0.00105277,123170.0,123160.0,1.2909775]
[1759970993908,0.00105277,123170.0,123160.0,1.2849775]
[1759970994137,0.00305277,123170.0,123160.0,1.2869775]
[1759970995663,0.00305277,123170.0,123160.0,1.3749535]
[1759970998353,0.00305277,123170.0,123160.0,1.04074634]
[1759970998739,0.00305277,123170.0,123160.0,1.2949567]
[1759971000380,0.00305277,123170.0,123160.0,1.0656767]
[1759971000597,0.00305277,123170.0,123160.0,1.2949567]
[1759971005868,0.00305277,123170.0,123160.0,0.9695167]
[1759971006079,0.00305277,123170.0,123160.0,0.63530954]
[1759971006298,0.05366277,123170.0,123160.0,0.36430954]
[1759971006509,0.05366277,123170.0,123160.0,0.56921164]
[1759971011884,0.03111277,123170.0,123160.0,0.58495164]
[1759971012605,0.03111277,123170.0,123160.0,0.56921164]
[1759971012924,0.05366277,123170.0,123160.0,0.56921164]
[1759971015282,0.05366277,123170.0,123160.0,0.58495164]
[1759971015613,0.03111277,123170.0,123160.0,0.58495164]
[1759971016245,0.05366277,123170.0,123160.0,0.56921164]
[1759971016704,0.05366277,123170.0,123160.0,0.33993164]
[1759971016918,0.05366277,123170.0,123160.0,0.56921164]
[1759971017851,0.05366277,123170.0,123160.0,0.25549164]
[1759971018059,0.05366277,123170.0,123160.0,0.56921164]
[1759971020653,0.05266277,123170.0,123160.0,0.56921164]
[1759971020857,0.05566277,123170.0,123160.0,0.56921164]
[1759971021063,0.05566277,123170.0,123160.0,0.48477164]
[1759971021303,0.05566277,123170.0,123160.0,0.56921164]
[1759971021953,0.05566277,123170.0,123160.0,0.56721164]
[1759971021954,0.05466277,123170.0,123160.0,0.56721164]
[1759971022171,0.05466277,123170.0,123160.0,0.56821164]
[1759971022372,0.05566277,123170.0,123160.0,0.56821164]
[1759971025238,0.03311277,123170.0,123160.0,0.58395164]
[1759971025653,0.05566277,123170.0,123160.0,0.56821164]
[1759971028299,0.05566277,123170.0,123160.0,0.58395164]
[1759971028650,0.05566277,123170.0,123160.0,0.56821164]
[1759971031043,0.05566277,123170.0,123160.0,0.48377164]
[1759971031262,0.05566277,123170.0,123160.0,0.56821164]
[1759971034955,0.46873806,123170.0,123160.0,0.0934192]
[1759971035173,0.46873806,123170.0,123160.0,0.31472]
[1759971035369,0.46873806,123170.0,123160.0,0.001]
[1759971035680,0.80255821,123170.0,123160.0,0.001]
[1759971036177,0.80255821,123170.0,123160.0,0.16784]
[1759971036438,0.61186012,123170.0,123160.0,0.001]
[1759971036675,0.60886012,123170.0,123160.0,0.23024]
[1759971036878,0.61486012,123170.0,123160.0,0.23024]
[1759971037077,0.61386012,123170.0,123160.0,0.22924]
[1759971037325,0.61586012,123170.0,123160.0,0.23024]
[1759971045331,0.11966277,123170.0,123160.0,0.41408847]
[1759971045545,0.06905277,123170.0,123160.0,0.65996847]
[1759971047598,0.08463277,123170.0,123160.0,0.65996847]
[1759971049905,0.08463277,123170.0,123160.0,0.43068847]
[1759971050146,0.12047277,123170.0,123160.0,0.39267038]
[1759971054473,0.14252254,123170.0,123160.0,0.47707038]
[1759971054714,0.12047277,123170.0,123160.0,0.47707038]
[1759971056461,0.28284997,123170.0,123160.0,0.47707038]
[1759971057829,0.28284997,123170.0,123160.0,0.72776847]
[1759971059064,0.28284997,123170.0,123160.0,0.47707038]
[1759971063259,0.12047277,123170.0,123160.0,0.47707038]
[1759971063479,0.12047277,123170.0,123160.0,0.49852847]
[1759971063707,0.12047277,123170.0,123160.0,0.72776847]
[1759971065145,0.28284997,123170.0,123160.0,0.72776847]
[1759971067008,0.12047277,123170.0,123160.0,0.72776847]
[1759971068334,0.28284997,123170.0,123160.0,0.47707038]
[1759971068569,0.12047277,123170.0,123160.0,0.72776847]
[1759971076033,0.12047277,123170.0,123160.0,0.47707038]
[1759971091656,0.11589123,123170.0,123160.0,0.47707038]
[1759971093104,0.11589123,123170.0,123160.0,0.39263038]
[1759971093105,0.27826843,123170.0,123160.0,0.39263038]
[1759971093326,0.11589123,123170.0,123160.0,0.47711038]
[1759971097678,0.09187123,123170.0,123160.0,0.82736351]
[1759971097882,0.09187123,123170.0,123160.0,0.90736031]
[1759971098243,0.06447123,123170.0,123160.0,0.90736031]
[1759971098812,0.08053123,123170.0,123160.0,0.82732351]
[1759971099028,0.09218123,123170.0,123160.0,0.82732351]
[1759971099649,0.11594123,123170.0,123160.0,0.82732351]
[1759971099852,0.09218123,123170.0,123160.0,0.82732351]
[1759971100035,0.11594123,123170.0,123160.0,0.82732351]
[1759971100446,0.09218123,123170.0,123160.0,0.82732351]
[1759971104385,0.09218123,123170.0,123160.0,0.74284351]
[1759971104589,0.11665123,123170.0,123160.0,0.82728351]
[1759971104943,0.11665123,123170.0,123160.0,0.51364351]
[1759971105136,0.09218123,123170.0,123160.0,0.82728351]
[1759971105947,0.09218123,123170.0,123160.0,0.74284351]
[1759971106158,0.09218123,123170.0,123160.0,0.84972488]
[1759971108092,0.09218123,123170.0,123160.0,0.51364351]
[1759971108330,0.11665123,123170.0,123160.0,0.81129351]
[1759971108538,0.11665123,123170.0,123160.0,0.16339038]
[1759971108747,0.11665123,123170.0,123160.0,0.47703038]
[1759971109168,0.11665123,123170.0,123160.0,0.16339038]
[1759971109419,0.11665123,123170.0,123160.0,0.47703038]
[1759971109639,0.27902843,123170.0,123160.0,0.16339038]
[1759971109847,0.27902843,123170.0,123160.0,0.47703038]
[1759971110064,0.27902843,123170.0,123160.0,0.16339038]
[1759971110286,0.27902843,123170.0,123160.0,0.47703038]
[1759971110943,0.27902843,123170.0,123160.0,0.39259038]
[1759971111257,0.27902843,123170.0,123160.0,0.47703038]
[1759971112873,0.27902843,123170.0,123160.0,0.001]
[1759971113091,0.71846339,123170.0,123160.0,0.001]
[1759971113322,0.74285148,123170.0,123160.0,0.2302]
[1759971113517,1.08285148,123170.0,123160.0,0.2302]
[1759971114615,1.06080171,123170.0,123160.0,0.2302]
[1759971116586,0.72653858,123170.0,123160.0,0.2302]
[1759971118215,0.72653858,123170.0,123160.0,0.001]
[1759971118414,1.06080171,123170.0,123160.0,0.2302]
[1759971119028,1.06063734,123170.0,123160.0,0.2302]
[1759971121161,0.72637421,123170.0,123160.0,0.2302]
[1759971121395,1.06063734,123170.0,123160.0,0.2302]
[1759971121766,1.06063734,123170.0,123160.0,0.001]
[1759971126165,1.06858065,123170.0,123160.0,0.001]
[1759971127678,1.06063734,123170.0,123160.0,0.001]
[1759971129516,1.06885577,123170.0,123160.0,0.001]
[1759971130384,1.06063734,123170.0,123160.0,0.001]
[1759971133647,1.28983734,123170.0,123160.0,0.001]
[1759971137818,0.94983734,123170.0,123160.0,0.001]
[1759971138027,1.20636321,123170.0,123160.0,0.001]
[1759971141133,0.86636321,123170.0,123160.0,0.001]
[1759971141577,1.20636321,123170.0,123160.0,0.001]
[1759971142253,1.21397265,123170.0,123160.0,0.001]
[1759971145506,1.21397451,123170.0,123160.0,0.001]
[1759971146253,0.98477451,123170.0,123160.0,0.001]
[1759971146457,0.96318551,123170.0,123160.0,0.001]
[1759971146663,1.21397451,123170.0,123160.0,0.001]
[1759971148626,1.20636321,123170.0,123160.0,0.001]
[1759971149039,1.21397467,123170.0,123160.0,0.001]
[1759971149468,1.20636321,123170.0,123160.0,0.001]
[1759971150085,1.45715221,123170.0,123160.0,0.001]
[1759971150739,1.20636321,123170.0,123160.0,0.001]
[1759971151475,1.25761322,123170.0,123160.0,0.001]
[1759971151689,1.73760222,123170.0,123160.0,0.001]
[1759971151909,1.75937529,123170.0,123160.0,0.001]
[1759971152132,1.75937529,123170.0,123110.0,0.06619503]
[1759971152133,0.16244314,123120.0,123110.0,0.06619503]
[1759971152348,0.42449214,123120.0,123110.0,0.06619503]
[1759971152566,0.46337214,123120.0,123110.0,0.06619503]
[1759971152781,0.48776814,123120.0,123110.0,0.06619503]
[1759971153002,0.16245633,123110.0,123100.0,0.18207761]
[1759971153209,0.19740735,123110.0,123100.0,0.41127761]
[1759971153446,0.21271735,123110.0,123100.0,0.41127761]
[1759971153654,0.21271735,123110.0,123100.0,0.18207761]
[1759971153877,0.21271735,123110.0,123100.0,0.41127761]
[1759971154311,0.21371735,123110.0,123100.0,0.41527761]
[1759971154539,0.21371735,123110.0,123100.0,0.18607761]
[1759971154749,0.21471735,123110.0,123100.0,0.41627761]
[1759971155429,0.21471735,123110.0,123100.0,0.18707761]
[1759971155633,0.21471735,123110.0,123100.0,0.41627761]
[1759971156053,0.02869102,123110.0,123100.0,0.68355661]
[1759971156888,0.05270102,123110.0,123100.0,0.68355661]
[1759971157552,0.05270102,123110.0,123100.0,0.66706661]
[1759971159640,0.05270102,123110.0,123100.0,0.41627761]
[1759971159853,0.05270102,123110.0,123100.0,0.66706661]
[1759971160480,0.02869102,123110.0,123100.0,0.68355661]
[1759971160679,0.00212102,123110.0,123100.0,0.93438561]
[1759971160891,0.00212102,123110.0,123100.0,0.68359661]
[1759971161088,0.01759102,123110.0,123100.0,0.68359661]
[1759971161515,0.00212102,123110.0,123100.0,0.94610561]
[1759971161745,0.00212102,123110.0,123100.0,0.97050078]
[1759971163906,0.00212102,123110.0,123100.0,1.05362284]
[1759971167470,0.05298102,123110.0,123100.0,0.03275941]
[1759971167711,0.16249909,123080.0,123060.0,0.25285856]
[1759971167934,0.05086,123070.0,123060.0,0.1172177]
[1759971168155,0.05086,123070.0,123060.0,0.3225365]
[1759971168407,0.21336914,123070.0,123060.0,0.3225365]
[1759971168636,0.16252234,123060.0,123050.0,0.03578724]
[1759971168892,0.01163,123060.0,123050.0,0.58728398]
[1759971169124,0.05098095,123060.0,123050.0,0.58728398]
[1759971169565,0.05098095,123060.0,123050.0,0.56288125]